[Event "26th Abu Dhabi Master 2019"]
[Site "Abu Dhabi"]
[Date "2019.08.07"]
[Round "6.15"]
[White "Rathanvel, V S"]
[Black "Abdusattorov, Nodirbek"]
[Result "1/2-1/2"]
[ECO "B90"]
[WhiteElo "2367"]
[BlackElo "2598"]
[Annotator "ChessBase"]
[PlyCount "94"]
[EventDate "2019.08.02"]
[EventType "swiss"]
[EventCountry "UAE"]
[SourceTitle "playchess.com"]
[Source "ChessBase"]
[SourceQuality "1"]
[TimeControl "5400+30"]

1. e4 {[%emt 0:00:00]} c5 {[%emt 0:00:00]} 2. Nf3 {[%emt 0:00:00]} d6 {[%emt 0:00:05]} 3. d4 {[%emt 0:00:00]} cxd4 {[%emt 0:00:05]} 4. Nxd4 {[%emt 0:00:00]} Nf6 {[%emt 0:00:06]} 5. Nc3 {[%emt 0:00:06]} a6 {[%emt 0:00:04]} 6. h3 {[%emt 0:00:09]} e6 {[%emt 0:00:48]} 7. g4 {[%emt 0:00:07]} Nfd7 {[%emt 0:00:52]} 8. Bg2 {[%emt 0:00:11]} Nc6 {[%emt 0:00:25]} 9. Be3 {[%emt 0:00:56]} Be7 {[%emt 0:02:36]} 10. Nce2 {[%emt 0:07:51]} Nde5 {[%emt 0:04:16]} 11. O-O {[%emt 0:02:22]} O-O {[%emt 0:02:29]} 12. b3 {[%emt 0:02:21]} Nxd4 {[%emt 0:03:09]} 13. Nxd4 {[%emt 0:05:50]} Ng6 {[%emt 0:05:22]} 14. Qd2 {[%emt 0:01:38]} Qc7 {[%emt 0:03:40]} 15. c4 {[%emt 0:03:57]} b6 {[%emt 0:07:31]} 16. a4 {[%emt 0:01:21]} Bb7 {[%emt 0:00:39]} 17. a5 {[%emt 0:00:38]} bxa5 {[%emt 0:00:22]} 18. Qxa5 {[%emt 0:01:00]} Qd7 {[%emt 0:02:54]} 19. Qa4 {[%emt 0:05:27]} Qc8 {[%emt 0:02:11]} 20. Rac1 {[%emt 0:21:56]} Nh4 {[%emt 0:00:56]} 21. Bh1 {[%emt 0:00:50]} e5 {[%emt 0:04:10]} 22. Nf5 {[%emt 0:06:35]} Nxf5 {[%emt 0:00:05]} 23. gxf5 {[%emt 0:01:00]} Bc6 {[%emt 0:00:37]} 24. Qa5 {[%emt 0:06:29]} Qb7 {[%emt 0:02:13]} 25. c5 {[%emt 0:00:41]} dxc5 {[%emt 0:05:11]} 26. Bxc5 {[%emt 0:00:13]} Rfc8 {[%emt 0:00:31]} 27. Bxe7 {[%emt 0:11:30]} Qxe7 {[%emt 0:00:06]} 28. Qd2 {[%emt 0:03:32]} g6 {[%emt 0:02:38]} 29. Rc3 {[%emt 0:02:18]} Bb5 {[%emt 0:01:11]} 30. Rfc1 {[%emt 0:04:14]} Rxc3 {[%emt 0:00:22]} 31. Rxc3 {[%emt 0:03:45]} Rd8 {[%emt 0:00:30]} 32. Qh6 {[%emt 0:00:50]} Qd6 {[%emt 0:02:29]} 33. Bg2 {[%emt 0:02:00]} Qd1+ {[%emt 0:12:51]} 34. Kh2 {[%emt 0:00:02]} Qd2 {[%emt 0:00:23]} 35. Qh4 {[%emt 0:02:34]} Rd6 {[%emt 0:14:51]} 36. Rg3 {[%emt 0:02:49]} Qf4 {[%emt 0:01:51]} 37. Qxf4 {[%emt 0:01:11]} exf4 {[%emt 0:00:04]} 38. Rg4 {[%emt 0:00:14]} Be2 {[%emt 0:00:33]} 39. Rxf4 {[%emt 0:00:05]} f6 {[%emt 0:07:14]} 40. fxg6 {[%emt 0:00:49]} hxg6 {[%emt 0:00:01]} 41. e5 {[%emt 0:02:06]} fxe5 42. Re4 {[%emt 0:00:03]} Bd1 {[%emt 0:00:17]} 43. b4 {[%emt 0:00:20]} Rd2 {[%emt 0:04:23]} 44. Kg3 {[%emt 0:01:20]} Rd3+ {[%emt 0:02:10]} 45. Kh2 {[%emt 0:00:17]} Rd2 {[%emt 0:00:07]} 46. Kg3 {[%emt 0:00:36]} Rd3+ {[%emt 0:00:06]} 47. Re3 {[%emt 0:00:41]} Rd4 {[%emt 0:00:30]} 1/2-1/2

[Event "26th Abu Dhabi Master 2019"]
[Site "Abu Dhabi"]
[Date "2019.08.07"]
[Round "6.16"]
[White "Can, Emre"]
[Black "Sindarov, Javokhir"]
[Result "1-0"]
[ECO "D85"]
[WhiteElo "2595"]
[BlackElo "2479"]
[Annotator "ChessBase"]
[PlyCount "123"]
[EventDate "2019.08.02"]
[EventType "swiss"]
[EventCountry "UAE"]
[SourceTitle "playchess.com"]
[Source "ChessBase"]
[SourceQuality "1"]
[TimeControl "5400+30"]

1. d4 Nf6 2. c4 g6 3. Nc3 d5 4. cxd5 Nxd5 5. e4 Nxc3 6. bxc3 Bg7 7. Qa4+ Qd7 8. Bb5 c6 9. Be2 O-O 10. Qa3 b6 11. Nf3 c5 12. O-O Bb7 13. d5 e6 14. Be3 exd5 15. Rad1 Nc6 16. exd5 Ne7 17. c4 Nf5 18. Bc1 Rfe8 19. Rfe1 Nd6 20. Bf1 a6 21. Bb2 Bxb2 22. Qxb2 b5 23. Ne5 Qf5 24. cxb5 axb5 25. h3 Rxa2 26. Qxa2 Rxe5 27. Qa5 Rxe1 28. Qxe1 Qf6 29. Bxb5 c4 30. Bc6 Bc8 31. Rc1 Bf5 32. Qe3 Bd3 33. Re1 Kg7 34. g4 h6 35. f3 Qb2 36. Qe5+ Qxe5 37. Rxe5 Kf6 38. Re3 Kg5 39. Kf2 Kf4 40. Ba4 h5 41. Bd1 h4 42. Be2 Bb1 43. Re7 Ba2 44. Rd7 Ke5 45. f4+ Kxd5 46. Ke3 Bb3 47. Bf3+ Ke6 48. Rc7 Bc2 49. Rc5 Kd7 50. Kd4 Bd3 51. Re5 f5 52. Kc5 Be4 53. Bxe4 Nxe4+ 54. Rxe4 fxe4 55. Kxc4 e3 56. Kd3 e2 57. Kxe2 Ke6 58. Ke3 Kd5 59. Kd3 Kd6 60. Kd4 Ke6 61. Kc5 g5 62. f5+ {Kd5+} 1-0

[Event "26th Abu Dhabi Master 2019"]
[Site "Abu Dhabi"]
[Date "2019.08.07"]
[Round "6.17"]
[White "Vaibhav, Suri"]
[Black "Xu, Yi"]
[Result "1-0"]
[ECO "C42"]
[WhiteElo "2591"]
[BlackElo "2524"]
[Annotator "ChessBase"]
[PlyCount "69"]
[EventDate "2019.08.02"]
[EventType "swiss"]
[EventCountry "UAE"]
[SourceTitle "playchess.com"]
[Source "ChessBase"]
[SourceQuality "1"]
[TimeControl "5400+30"]

1. e4 {[%emt 0:00:00]} e5 {[%emt 0:00:13]} 2. Nf3 {[%emt 0:00:06]} Nf6 {[%emt 0:00:04]} 3. Nxe5 {[%emt 0:01:42]} d6 {[%emt 0:00:07]} 4. Nf3 {[%emt 0:00:28]} Nxe4 {[%emt 0:00:06]} 5. Nc3 {[%emt 0:00:08]} Nxc3 {[%emt 0:00:05]} 6. dxc3 {[%emt 0:00:04]} Be7 {[%emt 0:00:06]} 7. Be3 {[%emt 0:00:08]} O-O {[%emt 0:00:12]} 8. Qd2 {[%emt 0:00:06]} Nd7 {[%emt 0:00:06]} 9. O-O-O {[%emt 0:00:11]} Nf6 {[%emt 0:00:15]} 10. Bd3 {[%emt 0:00:12]} c5 {[%emt 0:00:24]} 11. h4 {[%emt 0:00:15]} Be6 {[%emt 0:02:36]} 12. h5 {[%emt 0:00:10]} Qa5 {[%emt 0:04:01]} 13. a3 {[%emt 0:00:16]} c4 {[%emt 0:01:04]} 14. Be2 {[%emt 0:00:25]} Ne4 {[%emt 0:05:51]} 15. Qd4 {[%emt 0:01:41]} d5 {[%emt 0:08:59]} 16. h6 {[%emt 0:00:33]} Bf6 {[%emt 0:07:38]} 17. hxg7 {[%emt 0:03:47]} Bxd4 {[%emt 0:47:41]} 18. gxf8=Q+ {[%emt 0:00:09]} Rxf8 {[%emt 0:00:09]} 19. Nxd4 {[%emt 0:00:26]} Nxc3 {[%emt 0:01:58]} 20. bxc3 {[%emt 0:09:20]} Qxc3 {[%emt 0:00:05]} 21. Rh5 {[%emt 0:13:28]} Qxa3+ {[%emt 0:00:39]} 22. Kd2 {[%emt 0:00:07]} Qb4+ {[%emt 0:00:41]} 23. c3 {[%emt 0:00:52]} Qb2+ {[%emt 0:00:05]} 24. Ke1 {[%emt 0:14:18]} Re8 {[%emt 0:00:26]} 25. Kf1 {[%emt 0:07:20]} a5 {[%emt 0:02:47]} 26. Bc1 {[%emt 0:16:09]} Qxc3 {[%emt 0:03:33]} 27. Rg5+ {[%emt 0:00:11]} Kh8 {[%emt 0:01:26]} 28. Rg3 {[%emt 0:02:41]} Qb4 {[%emt 0:00:29]} 29. Bg5 {[%emt 0:00:13]} h5 {[%emt 0:01:10]} 30. Bf6+ {[%emt 0:00:23]} Kh7 {[%emt 0:00:03]} 31. Rg7+ {[%emt 0:00:20]} Kh6 {[%emt 0:01:32]} 32. g4 {[%emt 0:00:13]} hxg4 {[%emt 0:00:54]} 33. Kg2 {[%emt 0:00:40]} Qa3 {[%emt 0:00:24]} 34. Bxg4 {[%emt 0:02:53]} Bxg4 {[%emt 0:00:51]} 35. Rxg4 {[%emt 0:00:31]} 1-0

[Event "26th Abu Dhabi Master 2019"]
[Site "Abu Dhabi"]
[Date "2019.08.07"]
[Round "6.21"]
[White "Bai, Jinshi"]
[Black "Laxman, R.R."]
[Result "1-0"]
[ECO "A05"]
[WhiteElo "2606"]
[BlackElo "2429"]
[Annotator "ChessBase"]
[PlyCount "77"]
[EventDate "2019.08.02"]
[EventType "swiss"]
[EventCountry "UAE"]
[SourceTitle "playchess.com"]
[Source "ChessBase"]
[SourceQuality "1"]
[TimeControl "5400+30"]

1. Nf3 {[%emt 0:00:30]} Nf6 {[%emt 0:00:00]} 2. g3 {[%emt 0:00:26]} d5 {[%emt 0:04:02]} 3. Bg2 {[%emt 0:00:12]} e6 {[%emt 0:02:43]} 4. O-O {[%emt 0:01:17]} Be7 {[%emt 0:00:27]} 5. c4 {[%emt 0:00:36]} dxc4 {[%emt 0:00:11]} 6. Na3 {[%emt 0:00:55]} c5 {[%emt 0:00:42]} 7. Nxc4 {[%emt 0:04:32]} Nc6 {[%emt 0:02:24]} 8. b3 {[%emt 0:02:04]} O-O {[%emt 0:00:14]} 9. Bb2 {[%emt 0:00:13]} Nd5 {[%emt 0:01:24]} 10. d4 {[%emt 0:10:22]} b5 {[%emt 0:05:24]} 11. Nce5 {[%emt 0:01:24]} Nxe5 {[%emt 0:00:04]} 12. Nxe5 {[%emt 0:00:12]} Bb7 {[%emt 0:00:02]} 13. dxc5 {[%emt 0:10:19]} Bxc5 {[%emt 0:00:07]} 14. Rc1 {[%emt 0:00:04]} Rc8 {[%emt 0:00:14]} 15. Bxd5 {[%emt 0:18:50]} Bxd5 {[%emt 0:10:34]} 16. e4 {[%emt 0:07:21]} Bxe4 {[%emt 0:02:38]} 17. Nd7 {[%emt 0:00:19]} Qg5 {[%emt 0:00:20]} 18. Nxf8 {[%emt 0:09:41]} Rxf8 {[%emt 0:00:06]} 19. Qe2 {[%emt 0:02:26]} Ba8 {[%emt 0:00:24]} 20. Qe5 {[%emt 0:02:35]} Qxe5 {[%emt 0:00:05]} 21. Bxe5 {[%emt 0:00:02]} Bb6 {[%emt 0:00:12]} 22. Rfd1 {[%emt 0:07:15]} Bd5 {[%emt 0:00:06]} 23. Bc7 {[%emt 0:00:48]} h5 {[%emt 0:00:46]} 24. Bxb6 {[%emt 0:01:24]} axb6 {[%emt 0:00:01]} 25. f4 {[%emt 0:00:07]} Ra8 {[%emt 0:00:33]} 26. Rd2 {[%emt 0:00:48]} g6 {[%emt 0:04:03]} 27. Rc7 {[%emt 0:00:27]} Kg7 {[%emt 0:00:11]} 28. Kf2 {[%emt 0:00:19]} Kf6 {[%emt 0:00:12]} 29. Ke3 {[%emt 0:00:15]} b4 {[%emt 0:02:53]} 30. Rcc2 {[%emt 0:02:54]} Ra5 {[%emt 0:00:34]} 31. Rd4 {[%emt 0:00:32]} Rb5 {[%emt 0:00:04]} 32. h3 {[%emt 0:00:56]} e5 {[%emt 0:02:58]} 33. fxe5+ {[%emt 0:06:05]} Kxe5 {[%emt 0:00:23]} 34. h4 {[%emt 0:00:47]} f6 {[%emt 0:01:17]} 35. Rc8 {[%emt 0:00:30]} g5 {[%emt 0:05:15]} 36. Rh8 {[%emt 0:01:29]} Bf7 {[%emt 0:00:39]} 37. Rh7 {[%emt 0:01:06]} Bg6 {[%emt 0:00:27]} 38. Re7+ {[%emt 0:00:49]} Kf5 {[%emt 0:00:02]} 39. Kf3 {[%emt 0:01:26]} 1-0

[Event "26th Abu Dhabi Master 2019"]
[Site "Abu Dhabi"]
[Date "2019.08.07"]
[Round "6.22"]
[White "Sammed Jaykumar, Shete"]
[Black "Santos Latasa, Jaime"]
[Result "0-1"]
[ECO "B10"]
[WhiteElo "2416"]
[BlackElo "2594"]
[Annotator "ChessBase"]
[PlyCount "68"]
[EventDate "2019.08.02"]
[EventType "swiss"]
[EventCountry "UAE"]
[SourceTitle "playchess.com"]
[Source "ChessBase"]
[SourceQuality "1"]
[TimeControl "5400+30"]

1. e4 {[%emt 0:00:00]} c6 {[%emt 0:00:00]} 2. Nf3 {[%emt 0:00:02]} d5 {[%emt 0:00:00]} 3. exd5 {[%emt 0:00:12]} cxd5 {[%emt 0:00:00]} 4. Ne5 {[%emt 0:00:04]} Qb6 {[%emt 0:00:00]} 5. d4 {[%emt 0:01:55]} Nc6 {[%emt 0:00:08]} 6. Nxc6 {[%emt 0:01:43]} bxc6 {[%emt 0:00:25]} 7. Be2 {[%emt 0:03:22]} Ba6 {[%emt 0:04:31]} 8. c3 {[%emt 0:03:26]} e6 {[%emt 0:00:45]} 9. O-O {[%emt 0:00:40]} Bxe2 {[%emt 0:00:21]} 10. Qxe2 {[%emt 0:00:05]} Bd6 {[%emt 0:00:09]} 11. f4 {[%emt 0:06:37]} Ne7 {[%emt 0:05:17]} 12. Nd2 {[%emt 0:03:14]} O-O {[%emt 0:02:16]} 13. Nf3 {[%emt 0:00:23]} c5 {[%emt 0:01:03]} 14. dxc5 {[%emt 0:01:27]} Bxc5+ {[%emt 0:00:58]} 15. Kh1 {[%emt 0:00:05]} a5 {[%emt 0:00:48]} 16. Ne5 {[%emt 0:01:08]} Qb7 {[%emt 0:01:18]} 17. Nd3 {[%emt 0:02:58]} Bd6 {[%emt 0:00:25]} 18. Bd2 {[%emt 0:05:51]} a4 {[%emt 0:02:40]} 19. Rf3 {[%emt 0:00:48]} Rac8 {[%emt 0:00:07]} 20. Rh3 {[%emt 0:04:29]} Nf5 {[%emt 0:01:56]} 21. Qh5 {[%emt 0:10:52]} h6 {[%emt 0:00:12]} 22. Qf3 {[%emt 0:03:04]} Be7 {[%emt 0:06:46]} 23. g4 {[%emt 0:06:51]} Nh4 {[%emt 0:01:24]} 24. Qf2 {[%emt 0:01:50]} d4+ {[%emt 0:00:14]} 25. Kg1 {[%emt 0:00:27]} a3 {[%emt 0:00:21]} 26. c4 {[%emt 0:05:38]} axb2 {[%emt 0:01:30]} 27. Rb1 {[%emt 0:00:09]} Qe4 {[%emt 0:04:50]} 28. Rxb2 {[%emt 0:02:29]} Rb8 {[%emt 0:01:09]} 29. Rb3 {[%emt 0:03:38]} Rxb3 {[%emt 0:01:45]} 30. axb3 {[%emt 0:00:04]} Ra8 {[%emt 0:00:08]} 31. Ne1 {[%emt 0:02:01]} Ra2 {[%emt 0:01:47]} 32. Rd3 {[%emt 0:01:22]} Ra1 {[%emt 0:00:14]} 33. Qf1 {[%emt 0:01:28]} Ng2 {[%emt 0:01:37]} 34. Qxg2 {[%emt 0:03:44]} Qxd3 {[%emt 0:00:08]} 0-1

[Event "26th Abu Dhabi Master 2019"]
[Site "Abu Dhabi"]
[Date "2019.08.07"]
[Round "6.23"]
[White "Soumya, Swaminathan"]
[Black "Paichadze, Luka"]
[Result "0-1"]
[ECO "C41"]
[WhiteElo "2402"]
[BlackElo "2567"]
[Annotator "ChessBase"]
[PlyCount "111"]
[EventDate "2019.08.02"]
[EventType "swiss"]
[EventCountry "UAE"]
[SourceTitle "playchess.com"]
[Source "ChessBase"]
[SourceQuality "1"]
[TimeControl "5400+30"]

1. e4 {[%emt 0:00:00]} d6 {[%emt 0:00:00]} 2. d4 {[%emt 0:00:15]} Nf6 {[%emt 0:00:00]} 3. Nc3 {[%emt 0:00:06]} e5 {[%emt 0:00:00]} 4. Nf3 {[%emt 0:00:24]} Nbd7 {[%emt 0:00:01]} 5. Bc4 {[%emt 0:00:15]} Be7 {[%emt 0:00:06]} 6. O-O {[%emt 0:00:31]} O-O {[%emt 0:00:07]} 7. a4 {[%emt 0:00:08]} a5 {[%emt 0:00:08]} 8. Re1 {[%emt 0:00:07]} b6 {[%emt 0:00:09]} 9. b3 {[%emt 0:02:35]} Bb7 {[%emt 0:00:22]} 10. Ba3 {[%emt 0:00:21]} h6 {[%emt 0:02:46]} 11. Qd2 {[%emt 0:03:30]} Re8 {[%emt 0:03:22]} 12. Bb5 {[%emt 0:09:55]} c6 {[%emt 0:03:50]} 13. Bf1 {[%emt 0:04:38]} Qc7 {[%emt 0:05:27]} 14. Nh4 {[%emt 0:17:44]} Bf8 {[%emt 0:16:27]} 15. Nf5 {[%emt 0:01:48]} exd4 {[%emt 0:05:25]} 16. Qxd4 {[%emt 0:06:48]} c5 {[%emt 0:05:43]} 17. Qd3 {[%emt 0:00:19]} g6 {[%emt 0:05:30]} 18. Ne3 {[%emt 0:19:49]} Ne5 {[%emt 0:05:37]} 19. Qd1 {[%emt 0:00:17]} Nxe4 {[%emt 0:08:44]} 20. Ned5 {[%emt 0:04:56]} Nxc3 {[%emt 0:01:10]} 21. Nxc7 {[%emt 0:00:05]} Nxd1 {[%emt 0:00:05]} 22. Raxd1 {[%emt 0:02:25]} g5 {[%emt 0:01:47]} 23. Bb5 {[%emt 0:03:24]} Re7 {[%emt 0:03:54]} 24. Nxa8 {[%emt 0:00:10]} Bxa8 {[%emt 0:00:04]} 25. Bb2 {[%emt 0:02:33]} Bg7 {[%emt 0:03:23]} 26. c4 {[%emt 0:11:05]} f5 {[%emt 0:04:29]} 27. Kf1 {[%emt 0:01:09]} Be4 {[%emt 0:02:27]} 28. f3 {[%emt 0:01:31]} Nd3 {[%emt 0:07:18]} 29. Bxg7 {[%emt 0:02:25]} Nxe1 {[%emt 0:00:12]} 30. fxe4 {[%emt 0:02:31]} Nc2 {[%emt 0:00:05]} 31. Rd2 {[%emt 0:00:41]} Ne3+ {[%emt 0:00:11]} 32. Ke2 {[%emt 0:00:08]} Rxe4 {[%emt 0:01:22]} 33. Bc6 {[%emt 0:00:21]} d5 {[%emt 0:00:16]} 34. Ba1 {[%emt 0:03:34]} Nxc4+ {[%emt 0:03:38]} 35. Kd1 {[%emt 0:00:21]} Nxd2 {[%emt 0:04:17]} 36. Bxd5+ {[%emt 0:00:01]} Kh7 {[%emt 0:00:07]} 37. Kxd2 {[%emt 0:00:02]} Re7 {[%emt 0:00:20]} 38. Bc4 {[%emt 0:01:29]} Kg6 {[%emt 0:00:08]} 39. Bc3 {[%emt 0:00:19]} h5 {[%emt 0:00:06]} 40. Be2 {[%emt 0:00:21]} Rd7+ {[%emt 0:00:25]} 41. Ke3 {[%emt 0:00:29]} f4+ {[%emt 0:00:17]} 42. Kf3 {[%emt 0:00:32]} Kf5 {[%emt 0:00:16]} 43. h3 {[%emt 0:00:18]} g4+ {[%emt 0:00:06]} 44. hxg4+ {[%emt 0:00:06]} hxg4+ {[%emt 0:00:04]} 45. Kf2 {[%emt 0:00:04]} Kg5 {[%emt 0:00:42]} 46. Bc4 {[%emt 0:01:01]} Rd1 {[%emt 0:00:39]} 47. Ke2 {[%emt 0:00:29]} Rg1 {[%emt 0:00:17]} 48. Bd5 {[%emt 0:00:08]} Kf5 {[%emt 0:00:48]} 49. Bb7 {[%emt 0:00:59]} Rb1 {[%emt 0:03:09]} 50. Bc8+ {[%emt 0:00:06]} Kg5 {[%emt 0:00:32]} 51. Be6 {[%emt 0:00:07]} f3+ {[%emt 0:05:51]} 52. Kf2 {[%emt 0:00:15]} Kf4 {[%emt 0:00:56]} 53. gxf3 {[%emt 0:00:24]} gxf3 {[%emt 0:00:06]} 54. Bg7 {[%emt 0:02:27]} Rh1 {[%emt 0:00:19]} 55. Bc4 {[%emt 0:00:33]} Rh2+ {[%emt 0:00:07]} 56. Ke1 {[%emt 0:00:23] Ke5} 0-1

[Event "26th Abu Dhabi Master 2019"]
[Site "Abu Dhabi"]
[Date "2019.08.07"]
[Round "6.24"]
[White "Vaishali R"]
[Black "Santos Ruiz, Miguel"]
[Result "1/2-1/2"]
[ECO "B92"]
[WhiteElo "2344"]
[BlackElo "2567"]
[Annotator "ChessBase"]
[PlyCount "75"]
[EventDate "2019.08.02"]
[EventType "swiss"]
[EventCountry "UAE"]
[SourceTitle "playchess.com"]
[Source "ChessBase"]
[SourceQuality "1"]
[TimeControl "5400+30"]

1. e4 {[%emt 0:00:00]} c5 {[%emt 0:00:00]} 2. Nf3 {[%emt 0:00:00]} d6 {[%emt 0:00:00]} 3. d4 {[%emt 0:00:05]} cxd4 {[%emt 0:00:00]} 4. Nxd4 {[%emt 0:00:05]} Nf6 {[%emt 0:00:00]} 5. Nc3 {[%emt 0:00:06]} a6 {[%emt 0:00:00]} 6. Be2 {[%emt 0:00:14]} e5 {[%emt 0:00:50]} 7. Nb3 {[%emt 0:00:07]} Be7 {[%emt 0:00:05]} 8. Be3 {[%emt 0:00:05]} Be6 {[%emt 0:00:05]} 9. f4 {[%emt 0:00:11]} exf4 {[%emt 0:06:58]} 10. Bxf4 {[%emt 0:00:03]} Nc6 {[%emt 0:00:03]} 11. Qd2 {[%emt 0:00:14]} d5 {[%emt 0:13:03]} 12. exd5 {[%emt 0:00:12]} Nxd5 {[%emt 0:02:47]} 13. Nxd5 {[%emt 0:00:08]} Qxd5 {[%emt 0:00:45]} 14. O-O-O {[%emt 0:00:26]} Qxd2+ {[%emt 0:09:31]} 15. Rxd2 {[%emt 0:00:03]} O-O {[%emt 0:04:29]} 16. Bf3 {[%emt 0:14:39]} Rad8 {[%emt 0:09:31]} 17. Rhd1 {[%emt 0:03:06]} Rxd2 {[%emt 0:11:18]} 18. Rxd2 {[%emt 0:00:12]} Rd8 {[%emt 0:00:19]} 19. Rxd8+ {[%emt 0:03:35]} Nxd8 {[%emt 0:00:33]} 20. Nd4 {[%emt 0:18:44]} Bd7 {[%emt 0:06:06]} 21. Kd2 {[%emt 0:05:26]} Kf8 {[%emt 0:02:24]} 22. Kd3 {[%emt 0:06:15]} Ke8 {[%emt 0:01:59]} 23. Bc7 {[%emt 0:02:09]} Nc6 {[%emt 0:01:33]} 24. c3 {[%emt 0:03:14]} Nxd4 {[%emt 0:04:59]} 25. cxd4 {[%emt 0:01:54]} Bf5+ {[%emt 0:04:30]} 26. Kc3 {[%emt 0:02:27]} Kd7 {[%emt 0:00:35]} 27. Be5 {[%emt 0:02:03]} f6 {[%emt 0:00:18]} 28. Bg3 {[%emt 0:01:24]} b6 {[%emt 0:00:50]} 29. Bb7 {[%emt 0:03:28]} a5 {[%emt 0:01:10]} 30. Kc4 {[%emt 0:01:04]} Bd8 {[%emt 0:03:15]} 31. d5 {[%emt 0:11:04]} Be4 {[%emt 0:00:26]} 32. Bc6+ {[%emt 0:00:22]} Kc8 {[%emt 0:00:03]} 33. Kb5 {[%emt 0:02:32]} Bd3+ {[%emt 0:03:53]} 34. Ka4 {[%emt 0:00:05]} Be4 {[%emt 0:00:02]} 35. Kb5 {[%emt 0:02:20]} Bd3+ {[%emt 0:00:22]} 36. Ka4 {[%emt 0:00:02]} Be4 {[%emt 0:00:04]} 37. Ba8 {[%emt 0:04:11]} Kd7 {[%emt 0:03:25]} 38. Bc6+ {[%emt 0:01:51]} 1/2-1/2

[Event "26th Abu Dhabi Master 2019"]
[Site "Abu Dhabi"]
[Date "2019.08.07"]
[Round "6.25"]
[White "Rakesh Kumar Jena"]
[Black "Sengupta, Deep"]
[Result "0-1"]
[ECO "A68"]
[WhiteElo "2395"]
[BlackElo "2558"]
[Annotator "ChessBase"]
[PlyCount "58"]
[EventDate "2019.08.02"]
[EventType "swiss"]
[EventCountry "UAE"]
[SourceTitle "playchess.com"]
[Source "ChessBase"]
[SourceQuality "1"]
[TimeControl "5400+30"]

1. d4 {[%emt 0:00:00]} c5 {[%emt 0:00:17]} 2. d5 {[%emt 0:00:00]} g6 {[%emt 0:00:08]} 3. e4 {[%emt 0:00:32]} Bg7 {[%emt 0:00:04]} 4. f4 {[%emt 0:00:18]} d6 {[%emt 0:00:08]} 5. Nf3 {[%emt 0:00:13]} e6 {[%emt 0:04:51]} 6. c4 {[%emt 0:05:51]} exd5 {[%emt 0:06:20]} 7. cxd5 {[%emt 0:02:50]} Nf6 {[%emt 0:02:32]} 8. Nc3 {[%emt 0:00:14]} O-O {[%emt 0:00:06]} 9. Bd3 {[%emt 0:03:08]} b5 {[%emt 0:12:43]} 10. e5 {[%emt 0:05:08]} dxe5 {[%emt 0:00:31]} 11. fxe5 {[%emt 0:00:06]} Ng4 {[%emt 0:00:04]} 12. Bxb5 {[%emt 0:00:19]} Nxe5 {[%emt 0:00:36]} 13. O-O {[%emt 0:00:08]} Bg4 {[%emt 0:05:36]} 14. Be2 {[%emt 0:02:19]} Bxf3 {[%emt 0:00:08]} 15. Bxf3 {[%emt 0:01:18]} Nbd7 {[%emt 0:00:07]} 16. Be2 {[%emt 0:04:25]} Rb8 {[%emt 0:02:52]} 17. Qc2 {[%emt 0:01:35]} f5 {[%emt 0:02:50]} 18. a4 {[%emt 0:05:11]} Rb4 {[%emt 0:02:10]} 19. Na2 {[%emt 0:03:55]} Rd4 {[%emt 0:03:37]} 20. Be3 {[%emt 0:01:11]} Re4 {[%emt 0:19:19]} 21. Bf2 {[%emt 0:00:17]} Qg5 {[%emt 0:00:06]} 22. Rae1 {[%emt 0:05:14]} Ng4 {[%emt 0:03:36]} 23. h4 {[%emt 0:04:46]} Qd8 {[%emt 0:06:00]} 24. Bxg4 {[%emt 0:01:02]} Rxg4 {[%emt 0:00:02]} 25. d6 {[%emt 0:01:30]} Qa8 {[%emt 0:04:34]} 26. Qb3+ {[%emt 0:06:30]} c4 {[%emt 0:00:31]} 27. Qh3 {[%emt 0:00:06]} Ne5 {[%emt 0:00:27]} 28. Bg3 {[%emt 0:01:21]} Qd5 {[%emt 0:03:50]} 29. Rd1 {[%emt 0:00:34]} Nd3 {[%emt 0:01:38]} 0-1

[Event "26th Abu Dhabi Master 2019"]
[Site "Abu Dhabi"]
[Date "2019.08.07"]
[Round "6.26"]
[White "Bajarani, Ulvi"]
[Black "Senthil Maran K"]
[Result "1-0"]
[ECO "D43"]
[WhiteElo "2485"]
[BlackElo "2222"]
[Annotator "ChessBase"]
[PlyCount "73"]
[EventDate "2019.08.02"]
[EventType "swiss"]
[EventCountry "UAE"]
[SourceTitle "playchess.com"]
[Source "ChessBase"]
[SourceQuality "1"]
[TimeControl "5400+30"]

1. d4 {[%emt 0:00:00]} Nf6 {[%emt 0:04:49]} 2. c4 {[%emt 0:00:00]} c6 {[%emt 0:00:05]} 3. Nc3 {[%emt 0:00:00]} d5 {[%emt 0:00:08]} 4. Nf3 {[%emt 0:00:17]} e6 {[%emt 0:03:08]} 5. Bg5 {[%emt 0:00:34]} h6 {[%emt 0:02:01]} 6. Bxf6 {[%emt 0:00:06]} Qxf6 {[%emt 0:00:10]} 7. e3 {[%emt 0:01:03]} Nd7 {[%emt 0:01:13]} 8. a3 {[%emt 0:00:27]} g6 {[%emt 0:00:37]} 9. cxd5 {[%emt 0:00:32]} exd5 {[%emt 0:00:39]} 10. b4 {[%emt 0:00:04]} a6 {[%emt 0:00:57]} 11. Bd3 {[%emt 0:01:37]} Bg7 {[%emt 0:02:45]} 12. O-O {[%emt 0:00:15]} O-O {[%emt 0:00:13]} 13. a4 {[%emt 0:00:10]} g5 {[%emt 0:12:36]} 14. b5 {[%emt 0:01:02]} a5 {[%emt 0:08:15]} 15. bxc6 {[%emt 0:00:19]} bxc6 {[%emt 0:00:02]} 16. Rb1 {[%emt 0:01:08]} g4 {[%emt 0:02:35]} 17. Nd2 {[%emt 0:01:08]} Qg5 {[%emt 0:02:00]} 18. Qc2 {[%emt 0:06:36]} c5 {[%emt 0:13:55]} 19. Nxd5 {[%emt 0:06:48]} cxd4 {[%emt 0:14:54]} 20. Nc7 {[%emt 0:01:17]} Rb8 {[%emt 0:02:46]} 21. Ne4 {[%emt 0:05:06]} Qe5 {[%emt 0:03:43]} 22. exd4 {[%emt 0:01:09]} Qxd4 {[%emt 0:00:13]} 23. Nb5 {[%emt 0:02:32]} Qe5 {[%emt 0:01:09]} 24. Rfe1 {[%emt 0:00:43]} Ba6 {[%emt 0:06:29]} 25. Qd1 {[%emt 0:09:20]} Rbd8 {[%emt 0:03:53]} 26. Qxg4 {[%emt 0:09:23]} f5 {[%emt 0:01:00]} 27. Qg6 {[%emt 0:00:04]} fxe4 {[%emt 0:01:28]} 28. Bxe4 {[%emt 0:00:13]} Nf6 {[%emt 0:01:23]} 29. Bf5 {[%emt 0:00:08]} Qc5 {[%emt 0:05:07]} 30. Rec1 {[%emt 0:03:03]} Qd5 {[%emt 0:04:23]} 31. Nc7 {[%emt 0:00:25]} Qd6 {[%emt 0:00:01]} 32. Nxa6 {[%emt 0:00:35]} Nd5 {[%emt 0:00:41]} 33. Qh7+ {[%emt 0:02:03]} Kf7 {[%emt 0:00:01]} 34. Nc5 {[%emt 0:00:42]} Rh8 {[%emt 0:02:04]} 35. Be6+ {[%emt 0:00:08]} Kf8 {[%emt 0:01:29]} 36. Qf5+ {[%emt 0:00:12]} Nf6 {[%emt 0:00:21]} 37. h3 {[%emt 0:00:11]} 1-0